lending/lending_fUSD_20250122
["ID","MTS","AMOUNT","RATE_DAILY","PERIOD"]
[349981560,1737547854574,-500.0,0.00021076,2]
[349981561,1737547854583,-151.0,0.00021076,2]
[349981562,1737547854594,-569.992458,0.00021076,2]
[349981563,1737547854603,-671.5,0.00021076,2]
[349981564,1737547854612,-984.726808,0.00021076,2]
[349981565,1737547854622,-500.0,0.00021076,2]
[349981566,1737547854631,-500.0,0.00021076,2]
[349981567,1737547854641,-500.0,0.00021076,2]
[349981568,1737547854650,-500.0,0.00021076,2]
[349981569,1737547854659,-3228.73,0.00021076,2]
[349981570,1737547854668,-1797.99,0.00021076,2]
[349981571,1737547854678,-500.0,0.00021076,2]
[349981572,1737547854689,-578.89,0.00021076,2]
[349981573,1737547854699,-1192.31,0.00021076,2]
[349981574,1737547854709,-746.51,0.00021076,2]
[349981575,1737547854718,-568.95,0.00021076,2]
[349981576,1737547854727,-705.33,0.00021076,2]
[349981577,1737547854737,-2381.86,0.00021076,2]
[349981578,1737547854746,-1164.46,0.00021076,2]
[349981579,1737547854755,-802.62,0.00021076,2]
[349981580,1737547854765,-1262.57,0.00021076,2]
[349981581,1737547854774,-1492.48,0.00021076,2]
[349981582,1737547854783,-1279.29,0.00021076,2]
[349981583,1737547854792,-500.0,0.00021076,2]
[349981584,1737547854801,-1938.69,0.00021076,2]
[349981585,1737547854810,-704.42,0.00021076,2]
[349981586,1737547854819,-1527.74,0.00021076,2]
[349981587,1737547854828,-1213.14,0.00021076,2]
[349981588,1737547854838,-3451.93,0.00021076,2]
[349981589,1737547854847,-629.18,0.00021076,2]
[349981590,1737547854857,-1662.99,0.00021076,2]
[349981591,1737547854866,-966.8,0.00021076,2]
[349981592,1737547854877,-1009.43,0.00021076,2]
[349981593,1737547854886,-6583.92,0.00021076,2]
[349981594,1737547854895,-1024.57,0.00021076,2]
[349981595,1737547854904,-500.0,0.00021076,2]
[349981596,1737547854914,-1463.3,0.00021076,2]
[349981597,1737547854923,-1063.59,0.00021076,2]
[349981598,1737547854933,-1468.73,0.00021076,2]
[349981599,1737547854942,-1316.92,0.00021076,2]
[349981600,1737547854951,-500.0,0.00021076,2]
[349981601,1737547854960,-919.83,0.00021076,2]
[349981602,1737547854971,-1964.22,0.00021076,2]
[349981603,1737547854981,-904.6,0.00021076,2]
[349981604,1737547854992,-3487.61,0.00021076,2]
[349981605,1737547855001,-500.0,0.00021076,2]
[349981606,1737547855011,-2139.18,0.00021076,2]
[349981607,1737547855021,-764.62,0.00021076,2]
[349981608,1737547855030,-2190.73,0.00021076,2]
[349981609,1737547855039,-1330.12,0.00021076,2]
[349981610,1737547855048,-3431.81,0.00021076,2]
[349981611,1737547855058,-1013.99,0.00021076,2]
[349981612,1737547855067,-2142.77,0.00021076,2]
[349981613,1737547855077,-1633.14,0.00021076,2]
[349981614,1737547855088,-1406.89,0.00021076,2]
[349981615,1737547855097,-2293.78,0.00021076,2]
[349981616,1737547855107,-556.77,0.00021076,2]
[349981617,1737547855117,-500.0,0.00021076,2]
[349981618,1737547855126,-2726.81,0.00021076,2]
[349981619,1737547855135,-1291.74,0.00021076,2]
[349981620,1737547855144,-500.0,0.00021076,2]
[349981621,1737547855154,-630.28,0.00021076,2]
[349981622,1737547855163,-891.67,0.00021076,2]
[349981623,1737547855172,-3617.63,0.00021076,2]
[349981624,1737547855181,-896.19,0.00021076,2]
[349981625,1737547855190,-1173.78,0.00021076,2]
[349981626,1737547855199,-1204.38,0.00021076,2]
[349981627,1737547855208,-800.6,0.00021076,2]
[349981628,1737547855217,-489.93853176,0.00021076,2]
[349981629,1737547855227,-500.0,0.00021076,2]
[349981630,1737547855236,-1247.53,0.00021076,2]
[349981631,1737547855245,-1340.1,0.00021076,2]
[349981632,1737547855254,-2007.04,0.00021076,2]
[349981633,1737547855264,-500.0,0.00021076,2]
[349981634,1737547855273,-1251.58,0.00021076,2]
[349981635,1737547855283,-555.69,0.00021076,2]
[349981636,1737547855291,-1252.77,0.00021076,2]
[349981637,1737547855300,-591.75,0.00021076,2]
[349981638,1737547855310,-1377.98,0.00021076,2]
[349981639,1737547855319,-1974.35,0.00021076,2]
[349981640,1737547855328,-500.0,0.00021076,2]
[349981641,1737547855338,-500.0,0.00021076,2]
[349981642,1737547855347,-1931.88,0.00021076,2]
[349981643,1737547855357,-3730.66,0.00021076,2]
[349981644,1737547855366,-1065.47,0.00021076,2]
[349981645,1737547855375,-1513.58,0.00021076,2]
[349981646,1737547855384,-500.0,0.00021076,2]
[349981647,1737547855393,-500.0,0.00021076,2]
[349981648,1737547855402,-1000.0,0.00021076,2]
[349981649,1737547855411,-1969.48,0.00021076,2]
[349981650,1737547855421,-500.0,0.00021076,2]
[349981651,1737547855431,-500.0,0.00021076,2]
[349981652,1737547855440,-500.0,0.00021076,2]
[349981653,1737547855450,-675.2,0.00021076,2]
[349981654,1737547855458,-1340.75,0.00021076,2]
[349981655,1737547855467,-712.32,0.00021076,2]
[349981656,1737547855477,-775.96,0.00021076,2]
[349981657,1737547855486,-1704.91,0.00021076,2]
[349981658,1737547855495,-500.0,0.00021076,2]
[349981659,1737547855504,-1007.97,0.00021076,2]
[349981660,1737547855513,-500.0,0.00021076,2]
[349981661,1737547855522,-500.0,0.00021076,2]
[349981662,1737547855531,-1184.77,0.00021076,2]
[349981663,1737547855540,-2000.39,0.00021076,2]
[349981664,1737547855549,-1390.58,0.00021076,2]
[349981665,1737547855559,-711.47,0.00021076,2]
[349981666,1737547855568,-500.0,0.00021076,2]
[349981667,1737547855576,-500.0,0.00021076,2]
[349981668,1737547855586,-2985.24,0.00021076,2]
[349981669,1737547855595,-500.0,0.00021076,2]
[349981670,1737547855604,-1512.07,0.00021076,2]
[349981671,1737547855613,-500.0,0.00021076,2]
[349981672,1737547855623,-1031.4948883,0.00021077,5]
[349981673,1737547855632,-500.0,0.00021077,2]
[349981674,1737547855641,-500.0,0.00021077,2]
[349981675,1737547855651,-151.0,0.00021077,2]
[349981676,1737547855661,-330.35594887,0.00021077,2]
[349981677,1737547855671,-151.0,0.00021077,2]
[349981678,1737547855681,-500.0,0.00021077,2]
[349981679,1737547855693,-151.0,0.00021077,2]
[349981680,1737547855704,-500.0,0.00021077,2]
[349981681,1737547855713,-151.0,0.00021077,2]
[349981682,1737547855723,-500.0,0.00021077,2]
[349981683,1737547855735,-500.0,0.00021077,2]
[349981684,1737547855746,-500.0,0.00021077,2]
[349981685,1737547855757,-500.0,0.00021077,2]
[349981686,1737547855767,-500.0,0.00021077,2]
[349981687,1737547855776,-500.0,0.00021077,2]
[349981688,1737547855785,-151.0,0.00021077,2]
[349981689,1737547855794,-500.0,0.00021077,2]
[349981690,1737547855803,-500.0,0.00021077,2]
[349981691,1737547855812,-528.44,0.00021077,2]
[349981692,1737547855820,-209.881666,0.00021077,2]
[349981693,1737547855830,-500.0,0.00021077,2]
[349981694,1737547855839,-209.881666,0.00021077,2]
[349981695,1737547855848,-500.0,0.00021077,2]
[349981696,1737547855858,-500.0,0.00021077,2]
[349981697,1737547855867,-706.46,0.00021077,2]
[349981698,1737547855877,-521.94481643,0.00021077,2]
[349981699,1737547855886,-500.0,0.00021077,2]
[349981700,1737547855895,-500.0,0.00021077,2]
[349981701,1737547855905,-500.0,0.00021077,2]
[349981702,1737547855914,-500.0,0.00021077,2]
[349981703,1737547855923,-500.0,0.00021077,2]
[349981704,1737547855932,-500.0,0.00021077,2]
[349981705,1737547855941,-500.0,0.00021077,2]
[349981706,1737547855951,-500.0,0.00021077,2]
[349981707,1737547855960,-500.0,0.00021077,2]
[349981708,1737547855969,-500.0,0.00021077,2]
[349981709,1737547855978,-500.0,0.00021077,2]
[349981710,1737547855987,-500.0,0.00021077,2]
[349981711,1737547855996,-500.0,0.00021077,2]
[349981712,1737547856005,-510.23,0.00021077,2]
[349981713,1737547856014,-640.11,0.00021077,2]
[349981714,1737547856023,-746.5,0.00021077,2]
[349981715,1737547856032,-632.07,0.00021077,2]
[349981716,1737547856041,-500.0,0.00021077,2]
[349981717,1737547856050,-500.0,0.00021077,2]
[349981718,1737547856059,-500.0,0.00021077,2]
[349981719,1737547856069,-500.0,0.00021077,2]
[349981720,1737547856079,-730.25,0.00021077,2]
[349981721,1737547856088,-594.26,0.00021077,2]
[349981722,1737547856097,-554.47,0.00021077,2]
[349981723,1737547856107,-151.0,0.00021077,2]
[349981724,1737547856115,-151.0,0.00021077,2]
[349981725,1737547856124,-605.84274801,0.00021077,2]
[349981726,1737547856133,-300.011065,0.00021077,2]
[349981727,1737547856142,-300.011065,0.00021077,2]
[349981728,1737547856151,-834.31,0.00021077,2]
[349981729,1737547856160,-151.0,0.00021077,2]
[349981730,1737547856169,-696.04,0.00021077,2]
[349981731,1737547856178,-151.0,0.00021077,2]
[349981732,1737547856187,-272.040353,0.00021077,2]
[349981733,1737547856195,-500.0,0.00021077,2]
[349981734,1737547856204,-151.0,0.00021077,2]
[349981735,1737547856213,-500.0,0.00021077,2]
[349981736,1737547856222,-500.0,0.00021077,2]
[349981737,1737547856231,-197.26206,0.00021077,2]
[349981738,1737547856240,-197.26206,0.00021077,2]
[349981739,1737547856249,-500.0,0.00021077,2]
[349981740,1737547856258,-151.0,0.00021077,2]
[349981741,1737547856268,-624.11,0.00021077,2]
[349981742,1737547856277,-500.0,0.00021077,2]
[349981743,1737547856286,-491.14343016,0.00021077,2]
[349981744,1737547856295,-500.0,0.00021077,2]
[349981745,1737547856304,-740.39,0.00021077,2]
[349981746,1737547856313,-500.0,0.00021077,2]
[349981747,1737547856322,-500.0,0.00021077,2]
[349981748,1737547856332,-500.0,0.00021077,2]
[349981749,1737547856342,-679.4,0.00021077,2]
[349981750,1737547856352,-916.61,0.00021077,2]
[349981751,1737547856361,-500.0,0.00021077,2]
[349981752,1737547856370,-617.62,0.00021077,2]
[349981753,1737547856379,-543.32,0.00021077,2]
[349981754,1737547856388,-151.0,0.00021077,2]
[349981755,1737547856398,-500.0,0.00021077,2]
[349981756,1737547856407,-974.02,0.00021077,2]
[349981757,1737547856416,-741.49,0.00021077,2]
[349981758,1737547856426,-981.48,0.00021077,2]
[349981759,1737547856435,-151.0,0.00021077,2]
[349981760,1737547856444,-286.77409,0.00021077,2]
[349981761,1737547856453,-151.0,0.00021077,2]
[349981762,1737547856462,-286.77409,0.00021077,2]
[349981763,1737547856472,-807.58,0.00021077,2]
[349981764,1737547856482,-151.0,0.00021077,2]
[349981765,1737547856491,-500.0,0.00021077,2]
[349981766,1737547856500,-500.0,0.00021077,2]
[349981767,1737547856510,-716.75,0.00021077,2]
[349981768,1737547856521,-10000.0,0.00021077,2]
[349981769,1737547856530,-10000.0,0.00021077,2]
[349981770,1737547856539,-2403.87976703,0.00021078,2]
[349981771,1737547856549,-500.0,0.00021079,2]
[349981772,1737547856559,-500.0,0.00021079,2]
[349981773,1737547856568,-190.71612267,0.00021079,2]
[349981774,1737547856577,-500.0,0.00021079,2]
[349981775,1737547856586,-500.0,0.00021079,2]
[349981776,1737547856595,-500.0,0.00021079,2]
[349981777,1737547856604,-164.6117127,0.00021079,2]
[349981778,1737547856614,-742782.57235058,0.0002108,2]
[349981779,1737547856624,-151.0,0.0002108,2]
[349981780,1737547856633,-151.0,0.0002108,2]
[349981781,1737547856642,-237.152806,0.0002108,2]
[349981782,1737547856651,-151.0,0.0002108,2]
[349981783,1737547856661,-151.0,0.0002108,2]
[349981784,1737547856670,-209.881666,0.0002108,2]
[349981785,1737547856680,-209.881666,0.0002108,2]
[349981786,1737547856694,-158.085012,0.0002108,2]
[349981787,1737547856707,-151.0,0.0002108,2]
[349981788,1737547856717,-151.0,0.0002108,2]
[349981789,1737547856726,-151.0,0.0002108,2]
[349981790,1737547856736,-178.402075,0.0002108,2]
[349981791,1737547856745,-300.011065,0.0002108,2]
[349981792,1737547856754,-300.011065,0.0002108,2]
[349981793,1737547856763,-151.0,0.0002108,2]
[349981794,1737547856773,-151.0,0.0002108,2]
[349981795,1737547856782,-272.040353,0.0002108,2]
[349981796,1737547856791,-151.0,0.0002108,2]
[349981797,1737547856801,-197.26206,0.0002108,2]
[349981798,1737547856810,-197.26206,0.0002108,2]
[349981799,1737547856819,-295.99304,0.0002108,2]
[349981800,1737547856828,-151.0,0.0002108,2]
[349981801,1737547856838,-151.0,0.0002108,2]
[349981802,1737547856847,-151.0,0.0002108,2]
[349981803,1737547856856,-492.172787,0.0002108,2]
[349981804,1737547856865,-245.701083,0.0002108,2]
[349981805,1737547856875,-492.172787,0.0002108,2]
[349981806,1737547856884,-245.701083,0.0002108,2]
[349981807,1737547856893,-232.563728,0.0002108,2]
[349981808,1737547856902,-151.0,0.0002108,2]
[349981809,1737547856911,-258.618064,0.0002108,2]
[349981810,1737547856920,-151.0,0.0002108,2]
[349981811,1737547856930,-741.562359,0.0002108,2]
[349981812,1737547856939,-741.562359,0.0002108,2]
[349981813,1737547856948,-151.0,0.0002108,2]
[349981814,1737547856957,-151.0,0.0002108,2]
[349981815,1737547856966,-286.77409,0.0002108,2]
[349981816,1737547856975,-151.0,0.0002108,2]
[349981817,1737547856984,-286.77409,0.0002108,2]
[349981818,1737547856993,-151.0,0.0002108,2]
[349981819,1737547857002,-170.150423,0.0002108,2]
[349981820,1737547857012,-151.0,0.0002108,2]
[349981821,1737547857021,-10000.0,0.0002108,2]
[349981822,1737547857031,-10000.0,0.0002108,2]
[349981823,1737547857040,-150.0,0.00021084,2]
[349981824,1737547857050,-150.0,0.00021096,2]
[349981825,1737547857059,-3261.21,0.000211,2]
[349981826,1737547857069,-319.42004417,0.00021101,2]
[349981827,1737547857078,-215.0,0.0002111,2]
[349981828,1737547857087,-150.0,0.00021135,2]
[349981829,1737547857096,-319.8450645,0.00021141,2]
[349981830,1737547857105,-197.26206,0.0002115,2]
[349981831,1737547857114,-197.26206,0.0002115,2]
[349981832,1737547857123,-151.0,0.00021151,2]
[349981833,1737547857132,-300.011065,0.00021151,2]
[349981834,1737547857142,-300.011065,0.00021151,2]
[349981835,1737547857151,-151.0,0.00021151,2]
[349981836,1737547857161,-151.0,0.00021151,2]
[349981837,1737547857170,-272.040353,0.00021151,2]
[349981838,1737547857179,-151.0,0.00021151,2]
[349981839,1737547857188,-231.11515039,0.00021171,2]
[349981840,1737547857197,-500.0,0.00021178,2]
[349981841,1737547857206,-437.55,0.00021178,2]
[349981842,1737547857215,-982.04,0.00021178,2]
[349981843,1737547857224,-173.59,0.00021178,2]
[349981844,1737547857234,-982.04,0.00021178,2]
[349981845,1737547857244,-298.05,0.00021178,2]
[349981846,1737547857253,-437.79,0.00021178,2]
[349981847,1737547857262,-300.0,0.00021178,2]
[349981848,1737547857273,-150.0,0.00021178,2]
[349981849,1737547857282,-150.0,0.00021178,2]
[349981850,1737547857291,-150.94,0.00021178,2]
[349981851,1737547857301,-150.0,0.00021178,2]
[349981852,1737547857310,-702.38139595,0.00021179,2]
[349981853,1737547857320,-1000.0,0.00021188,2]
[349981854,1737547857329,-1269.0,0.00021205,2]
[349981855,1737547857339,-571.19,0.00021205,2]
[349981856,1737547857348,-634.0,0.00021205,2]
[349981857,1737547857357,-231.777,0.00021205,2]
[349981858,1737547857367,-1864.0,0.00021205,2]
[349981859,1737547857375,-2947.0,0.00021205,2]
[349981860,1737547857385,-908.0,0.00021205,2]
[349981861,1737547857394,-1261.0,0.00021205,2]
[349981862,1737547857403,-859.0,0.00021205,2]
[349981863,1737547857412,-537.0,0.00021205,2]
[349981864,1737547857421,-3983.0,0.00021205,2]
[349981865,1737547857430,-319.8450645,0.0002121,2]
[349981866,1737547857440,-500.0,0.00021216,2]
[349981867,1737547857450,-150.0,0.00021222,2]
[349981868,1737547857459,-1261.81305941,0.00021223,2]
[349981869,1737547857469,-500.0,0.00021249,2]
[349981870,1737547857479,-541.87,0.00021249,2]
[349981871,1737547857488,-500.0,0.00021249,2]
[349981872,1737547857498,-603.41,0.00021249,2]
[349981873,1737547857507,-500.0,0.00021249,2]
[349981874,1737547857517,-500.0,0.00021249,2]
[349981875,1737547857527,-500.0,0.00021249,2]
[349981876,1737547857652,-500.0,0.00021249,2]
[349981877,1737547857685,-622.9,0.00021249,2]
[349981878,1737547857695,-500.0,0.00021249,2]
[349981879,1737547857705,-735.69,0.00021249,2]
[349981880,1737547857715,-500.0,0.00021249,2]
[349981881,1737547857724,-500.0,0.00021249,2]
[349981882,1737547857735,-578.3,0.00021249,2]
[349981883,1737547857744,-500.0,0.00021249,2]
[349981884,1737547857753,-500.0,0.00021249,2]
[349981885,1737547857763,-500.0,0.00021249,2]
[349981886,1737547857775,-520.87,0.00021249,2]
[349981887,1737547857784,-755.39,0.00021249,2]
[349981888,1737547857794,-500.0,0.00021249,2]
[349981889,1737547857804,-500.0,0.00021249,2]
[349981890,1737547857814,-784.88,0.00021249,2]
[349981891,1737547857823,-500.0,0.00021249,2]
[349981892,1737547857833,-849.77,0.00021249,2]
[349981893,1737547857843,-500.0,0.00021249,2]
[349981894,1737547857852,-510.99,0.00021249,2]
[349981895,1737547857862,-411.41,0.00021249,2]
[349981896,1737547857871,-500.0,0.00021249,2]
[349981897,1737547857885,-882.48,0.00021249,2]
[349981898,1737547857905,-500.0,0.00021249,2]
[349981899,1737547857915,-543.77,0.00021249,2]
[349981900,1737547857928,-500.0,0.00021249,2]
[349981901,1737547857938,-725.87,0.00021249,2]
[349981902,1737547857947,-500.0,0.00021249,2]
[349981903,1737547857956,-500.0,0.00021249,2]
[349981904,1737547857965,-591.28,0.00021249,2]
[349981905,1737547857975,-603.4,0.00021249,2]
[349981906,1737547857984,-575.77,0.00021249,2]
[349981907,1737547857993,-500.0,0.00021249,2]
[349981908,1737547858003,-500.0,0.00021249,2]
[349981909,1737547858019,-500.0,0.00021249,2]
[349981910,1737547858029,-520.17,0.00021249,2]
[349981911,1737547858038,-291.92138929,0.00021249,2]
[349981912,1737547858047,-500.0,0.00021249,2]
[349981913,1737547858058,-500.0,0.00021249,2]
[349981914,1737547858068,-500.0,0.00021249,2]
[349981915,1737547858076,-500.0,0.00021249,2]
[349981916,1737547858086,-500.0,0.00021249,2]
[349981917,1737547858096,-598.77,0.00021249,2]
[349981918,1737547858105,-500.0,0.00021249,2]
[349981919,1737547858114,-500.0,0.00021249,2]
[349981920,1737547858123,-500.0,0.00021249,2]
[349981921,1737547858133,-648.51,0.00021249,2]
[349981922,1737547858142,-500.0,0.00021249,2]
[349981923,1737547858151,-500.0,0.00021249,2]
[349981924,1737547858160,-500.0,0.00021249,2]
[349981925,1737547858170,-500.0,0.00021249,2]
[349981926,1737547858179,-500.0,0.00021249,2]
[349981927,1737547858189,-227.00929242,0.00021249,2]
[349981928,1737547858198,-645.68,0.00021249,2]
[349981929,1737547858207,-525.7,0.00021249,2]
[349981930,1737547858216,-604.24,0.00021249,2]
[349981931,1737547858230,-500.0,0.00021249,2]
[349981932,1737547858240,-487.36,0.00021249,2]
[349981933,1737547858249,-500.0,0.00021249,2]
[349981934,1737547858259,-500.0,0.00021249,2]
[349981935,1737547858268,-500.0,0.00021249,2]
[349981936,1737547858278,-500.0,0.00021249,2]
[349981937,1737547858287,-500.0,0.00021249,2]
[349981938,1737547858297,-500.0,0.00021249,2]
[349981939,1737547858306,-515.33,0.0002125,2]
[349981940,1737547858316,-500.0,0.0002125,2]
[349981941,1737547858325,-831.9,0.0002125,2]
[349981942,1737547858335,-150.0,0.0002127,2]
[349981943,1737547858346,-500.0,0.00021276,2]
[349981944,1737547858355,-319.8450645,0.00021279,2]
[349981945,1737547858365,-150.0,0.0002128,2]
[349981946,1737547858375,-2403.87976703,0.00021283,2]
[349981947,1737547858384,-150.0,0.00021288,4]
[349981948,1737547858393,-270.3626764,0.0002129,2]
[349981949,1737547858404,-31410.33487762,0.000213,2]
[349981950,1737547858413,-150.0,0.000213,2]
[349981951,1737547858423,-1284.0,0.000213,2]
[349981952,1737547858433,-892.40594956,0.00021301,2]
[349981953,1737547858442,-319.42004417,0.00021301,2]
[349981954,1737547858452,-167.08419073,0.00021301,2]
[349981955,1737547858461,-151.0,0.00021324,2]
[349981956,1737547858471,-319.8450645,0.00021348,2]
[349981957,1737547858481,-500.0,0.0002135,2]
[349981958,1737547858490,-500.0,0.0002135,2]
[349981959,1737547858500,-569.992458,0.0002135,2]
[349981960,1737547858510,-671.5,0.0002135,2]
[349981961,1737547858519,-984.726808,0.0002135,2]
[349981962,1737547858529,-500.0,0.0002135,2]
[349981963,1737547858539,-491.11048082,0.0002135,2]
[349981964,1737547858548,-500.0,0.0002135,2]
[349981965,1737547858558,-3228.73,0.0002135,2]
[349981966,1737547858567,-1797.99,0.0002135,2]
[349981967,1737547858577,-500.0,0.0002135,2]
[349981968,1737547858586,-578.89,0.0002135,2]
[349981969,1737547858596,-1192.31,0.0002135,2]
[349981970,1737547858606,-746.51,0.0002135,2]
[349981971,1737547858617,-568.95,0.0002135,2]
[349981972,1737547858626,-705.33,0.0002135,2]
[349981973,1737547858636,-2381.86,0.0002135,2]
[349981974,1737547858646,-1164.46,0.0002135,2]
[349981975,1737547858655,-802.62,0.0002135,2]
[349981976,1737547858665,-1262.57,0.0002135,2]
[349981977,1737547858675,-1492.48,0.0002135,2]
[349981978,1737547858684,-1279.29,0.0002135,2]
[349981979,1737547858695,-195.52,0.0002135,2]
[349981980,1737547858705,-1938.69,0.0002135,2]
[349981981,1737547858714,-704.42,0.0002135,2]
[349981982,1737547858723,-1527.74,0.0002135,2]
[349981983,1737547858733,-1213.14,0.0002135,2]
[349981984,1737547858743,-3451.93,0.0002135,2]
[349981985,1737547858752,-629.18,0.0002135,2]
[349981986,1737547858762,-1662.99,0.0002135,2]
[349981987,1737547858773,-966.8,0.0002135,2]
[349981988,1737547858783,-1009.43,0.0002135,2]
[349981989,1737547858793,-6583.92,0.0002135,2]
[349981990,1737547858803,-1024.57,0.0002135,2]
[349981991,1737547858812,-344.23776851,0.0002135,2]
[349981992,1737547858821,-1463.3,0.0002135,2]
[349981993,1737547858831,-1063.59,0.0002135,2]
[349981994,1737547858847,-1468.73,0.0002135,2]
[349981995,1737547858856,-1316.92,0.0002135,2]
[349981996,1737547858866,-500.0,0.0002135,2]
[349981997,1737547858875,-919.83,0.0002135,2]
[349981998,1737547858884,-1964.22,0.0002135,2]
[349981999,1737547858893,-904.6,0.0002135,2]
[349982000,1737547858903,-3487.61,0.0002135,2]
[349982001,1737547858912,-404.11424695,0.0002135,2]
[349982002,1737547858922,-2139.18,0.0002135,2]
[349982003,1737547858931,-764.62,0.0002135,2]
[349982004,1737547858940,-2190.73,0.0002135,2]
[349982005,1737547858950,-1330.12,0.0002135,2]
[349982006,1737547858959,-3431.81,0.0002135,2]
[349982007,1737547858969,-1013.99,0.0002135,2]
[349982008,1737547858980,-2142.77,0.0002135,2]
[349982009,1737547858989,-1633.14,0.0002135,2]
[349982010,1737547858998,-1406.89,0.0002135,2]
[349982011,1737547859007,-2293.78,0.0002135,2]
[349982012,1737547859017,-556.77,0.0002135,2]
[349982013,1737547859027,-500.0,0.0002135,2]
[349982014,1737547859036,-2726.81,0.0002135,2]
[349982015,1737547859045,-1291.74,0.0002135,2]
[349982016,1737547859055,-630.28,0.0002135,2]
[349982017,1737547859065,-891.67,0.0002135,2]
[349982018,1737547859075,-3617.63,0.0002135,2]
[349982019,1737547859088,-896.19,0.0002135,2]
[349982020,1737547859108,-1173.78,0.0002135,2]
[349982021,1737547859123,-1204.38,0.0002135,2]
[349982022,1737547859132,-800.6,0.0002135,2]
[349982023,1737547859141,-500.0,0.0002135,2]
[349982024,1737547859151,-1247.53,0.0002135,2]
[349982025,1737547859160,-1340.1,0.0002135,2]
[349982026,1737547859169,-2007.04,0.0002135,2]
[349982027,1737547859179,-1251.58,0.0002135,2]
[349982028,1737547859189,-500.0,0.0002135,2]
[349982029,1737547859199,-555.69,0.0002135,2]
[349982030,1737547859208,-1252.77,0.0002135,2]
[349982031,1737547859217,-591.75,0.0002135,2]
[349982032,1737547859227,-1377.98,0.0002135,2]
[349982033,1737547859236,-1974.35,0.0002135,2]
[349982034,1737547859245,-500.0,0.0002135,2]
[349982035,1737547859254,-500.0,0.0002135,2]
[349982036,1737547859263,-1931.88,0.0002135,2]
[349982037,1737547859272,-3730.66,0.0002135,2]
[349982038,1737547859282,-1065.47,0.0002135,2]
[349982039,1737547859291,-1513.58,0.0002135,2]
[349982040,1737547859300,-500.0,0.0002135,2]
[349982041,1737547859309,-500.0,0.0002135,2]
[349982042,1737547859319,-1000.0,0.0002135,2]
[349982043,1737547859328,-1969.48,0.0002135,2]
[349982044,1737547859337,-500.0,0.0002135,2]
[349982045,1737547859348,-500.0,0.0002135,2]
[349982046,1737547859357,-500.0,0.0002135,2]
[349982047,1737547859367,-675.2,0.0002135,2]
[349982048,1737547859376,-1340.75,0.0002135,2]
[349982049,1737547859385,-712.32,0.0002135,2]
[349982050,1737547859395,-775.96,0.0002135,2]
[349982051,1737547859404,-1704.91,0.0002135,2]
[349982052,1737547859414,-500.0,0.0002135,2]
[349982053,1737547859423,-1007.97,0.0002135,2]
[349982054,1737547859432,-500.0,0.0002135,2]
[349982055,1737547859442,-500.0,0.0002135,2]
[349982056,1737547859452,-1184.77,0.0002135,2]
[349982057,1737547859462,-2000.39,0.0002135,2]
[349982058,1737547859471,-1390.58,0.0002135,2]
[349982059,1737547859481,-711.47,0.0002135,2]